lending/lending_fUSD_20241120
["ID","MTS","AMOUNT","RATE_DAILY","PERIOD"]
[342782416,1732140717540,-500.0,0.0005589,120]
[342782417,1732140717549,-907.83,0.0005589,120]
[342782418,1732140717563,-1034.91,0.0005589,120]
[342782419,1732140717575,-500.0,0.0005589,120]
[342782420,1732140717585,-500.0,0.0005589,120]
[342782421,1732140717594,-5007.0,0.0005589,120]
[342782422,1732140717604,-500.0,0.0005589,120]
[342782423,1732140717614,-2296.76,0.0005589,20]
[342782424,1732140717624,-500.0,0.0005589,120]
[342782425,1732140717634,-500.0,0.0005589,120]
[342782426,1732140717643,-500.0,0.0005589,120]
[342782427,1732140717653,-500.0,0.0005589,120]
[342782428,1732140717662,-500.0,0.0005589,120]
[342782429,1732140717673,-500.0,0.0005589,120]
[342782430,1732140717683,-500.0,0.0005589,120]
[342782431,1732140717692,-798.21,0.0005589,120]
[342782432,1732140717702,-500.0,0.0005589,120]
[342782433,1732140717711,-500.0,0.0005589,120]
[342782434,1732140717720,-647.62,0.0005589,120]
[342782435,1732140717730,-500.0,0.0005589,120]
[342782436,1732140717739,-500.0,0.0005589,120]
[342782437,1732140717749,-500.0,0.0005589,120]
[342782438,1732140717759,-500.0,0.0005589,120]
[342782439,1732140717769,-2489.82,0.0005589,120]
[342782440,1732140717778,-2045.61,0.0005589,120]
[342782441,1732140717788,-500.0,0.0005589,120]
[342782442,1732140717798,-500.0,0.0005589,120]
[342782443,1732140717809,-500.0,0.0005589,120]
[342782444,1732140717818,-500.0,0.0005589,120]
[342782445,1732140717830,-500.0,0.0005589,120]
[342782446,1732140717841,-500.0,0.0005589,120]
[342782447,1732140717851,-972.27,0.0005589,120]
[342782448,1732140717862,-721.64,0.0005589,120]
[342782449,1732140717872,-1208.94,0.0005589,120]
[342782450,1732140717882,-500.0,0.0005589,120]
[342782451,1732140717892,-1591.78,0.0005589,120]
[342782452,1732140717901,-1887.72,0.0005589,120]
[342782453,1732140717911,-500.0,0.0005589,120]
[342782454,1732140717922,-850.0,0.0005589,120]
[342782455,1732140717931,-852.01,0.0005589,120]
[342782456,1732140717941,-872.84,0.0005589,120]
[342782457,1732140717951,-500.0,0.0005589,120]
[342782458,1732140717961,-500.0,0.0005589,120]
[342782459,1732140717970,-500.0,0.0005589,120]
[342782460,1732140717980,-500.0,0.0005589,120]
[342782461,1732140717989,-846.36,0.0005589,120]
[342782462,1732140717998,-500.0,0.0005589,120]
[342782463,1732140718007,-865.82,0.0005589,120]
[342782464,1732140718017,-1191.88,0.0005589,120]
[342782465,1732140718027,-500.0,0.0005589,120]
[342782466,1732140718037,-500.0,0.0005589,120]
[342782467,1732140718046,-1792.7,0.0005589,120]
[342782468,1732140718056,-500.0,0.0005589,120]
[342782469,1732140718066,-5749.44,0.0005589,120]
[342782470,1732140718076,-500.0,0.0005589,120]
[342782471,1732140718087,-500.0,0.0005589,120]
[342782472,1732140718100,-510.1602833,0.0005589,120]
[342782473,1732140718110,-500.0,0.0005589,120]
[342782474,1732140718120,-500.0,0.0005589,120]
[342782475,1732140718132,-500.0,0.0005589,120]
[342782476,1732140718146,-571.98,0.0005589,120]
[342782477,1732140718155,-706.66,0.0005589,120]
[342782478,1732140718166,-500.0,0.0005589,120]
[342782479,1732140718175,-258.72807314,0.0005589,120]
[342782480,1732140718186,-669.11,0.0005589,120]
[342782481,1732140718196,-710.75,0.0005589,120]
[342782482,1732140718207,-500.0,0.0005589,120]
[342782483,1732140718218,-600.76,0.0005589,120]
[342782484,1732140718227,-688.41,0.0005589,120]
[342782485,1732140718237,-2203.93,0.0005589,120]
[342782486,1732140718247,-1092.67,0.0005589,120]
[342782487,1732140718258,-723.74,0.0005589,120]
[342782488,1732140718268,-962.75,0.0005589,120]
[342782489,1732140718278,-500.0,0.0005589,120]
[342782490,1732140718289,-500.1101692,0.0005589,120]
[342782491,1732140718299,-500.0,0.0005589,120]
[342782492,1732140718309,-988.55,0.0005589,120]
[342782493,1732140718318,-500.0,0.0005589,120]
[342782494,1732140718329,-2304.78,0.0005589,120]
[342782495,1732140718339,-500.0,0.0005589,120]
[342782496,1732140718351,-500.0,0.0005589,120]
[342782497,1732140718360,-690.54,0.0005589,120]
[342782498,1732140718369,-500.0,0.0005589,120]
[342782499,1732140718379,-500.0,0.0005589,120]
[342782500,1732140718389,-843.9,0.0005589,120]
[342782501,1732140718398,-1647.87,0.0005589,120]
[342782502,1732140718408,-850.55,0.0005589,120]
[342782503,1732140718418,-809.67,0.0005589,120]
[342782504,1732140718428,-500.0,0.0005589,120]
[342782505,1732140718438,-683.97,0.0005589,120]
[342782506,1732140718447,-500.0,0.0005589,120]
[342782507,1732140718457,-834.1,0.0005589,120]
[342782508,1732140718466,-914.77,0.0005589,120]
[342782509,1732140718476,-1141.14,0.0005589,120]
[342782510,1732140718485,-500.0,0.0005589,120]
[342782511,1732140718495,-624.59,0.0005589,120]
[342782512,1732140718504,-500.0,0.0005589,120]
[342782513,1732140718513,-1109.8,0.0005589,120]
[342782514,1732140718523,-500.0,0.0005589,120]
[342782515,1732140718532,-500.0,0.0005589,120]
[342782516,1732140718542,-1752.52,0.0005589,120]
[342782517,1732140718551,-1096.46,0.0005589,120]
[342782518,1732140718563,-500.0,0.0005589,120]
[342782519,1732140718572,-950.07,0.0005589,120]
[342782520,1732140718581,-500.0,0.0005589,120]
[342782521,1732140718590,-500.0,0.0005589,120]
[342782522,1732140718599,-2142.92,0.0005589,120]
[342782523,1732140718609,-1422.3,0.0005589,120]
[342782524,1732140718618,-500.0,0.0005589,120]
[342782525,1732140718627,-829.0,0.0005589,120]
[342782526,1732140718637,-575.3,0.0005589,120]
[342782527,1732140718646,-500.0,0.0005589,120]
[342782528,1732140718655,-737.82,0.0005589,120]
[342782529,1732140718664,-500.0,0.0005589,120]
[342782530,1732140718674,-666.21,0.0005589,120]
[342782531,1732140718683,-1778.99,0.0005589,120]
[342782532,1732140718693,-1715.56,0.0005589,120]
[342782533,1732140718702,-1062.65,0.0005589,120]
[342782534,1732140718712,-500.0,0.0005589,120]
[342782535,1732140718721,-500.0,0.0005589,120]
[342782536,1732140718731,-500.0,0.0005589,120]
[342782537,1732140718740,-2346.15,0.0005589,120]
[342782538,1732140718749,-500.0,0.0005589,120]
[342782539,1732140718758,-949.47,0.0005589,120]
[342782540,1732140718768,-502.50237501,0.0005589,120]
[342782541,1732140718778,-1351.22,0.0005589,120]
[342782542,1732140718787,-500.0,0.0005589,120]
[342782543,1732140718797,-888.32,0.0005589,120]
[342782544,1732140718806,-500.0,0.0005589,120]
[342782545,1732140718815,-500.0,0.0005589,120]
[342782546,1732140718824,-880.81,0.0005589,120]
[342782547,1732140718834,-642.33,0.0005589,120]
[342782548,1732140718843,-597.52,0.0005589,120]
[342782549,1732140718852,-6141.54,0.0005589,120]
[342782550,1732140718862,-500.0,0.0005589,120]
[342782551,1732140718871,-1511.19,0.0005589,120]
[342782552,1732140718881,-1086.04,0.0005589,120]
[342782553,1732140718891,-668.34,0.0005589,120]
[342782554,1732140718902,-1351.32,0.0005589,120]
[342782555,1732140718913,-1492.04,0.0005589,120]
[342782556,1732140718923,-926.38,0.0005589,120]
[342782557,1732140718933,-695.0,0.0005589,120]
[342782558,1732140718943,-5287.99,0.0005589,120]
[342782559,1732140718954,-500.0,0.0005589,120]
[342782560,1732140718963,-500.0,0.0005589,120]
[342782561,1732140718973,-500.0,0.0005589,120]
[342782562,1732140718982,-1482.2,0.0005589,120]
[342782563,1732140718993,-845.23,0.0005589,120]
[342782564,1732140719002,-500.0,0.0005589,120]
[342782565,1732140719013,-500.0,0.0005589,120]
[342782566,1732140719024,-500.0,0.0005589,120]
[342782567,1732140719035,-1260.12,0.0005589,120]
[342782568,1732140719046,-320.33916872,0.0005589,120]
[342782569,1732140719055,-500.0,0.0005589,120]
[342782570,1732140719065,-1283.29,0.0005589,120]
[342782571,1732140719076,-500.0,0.0005589,120]
[342782572,1732140719087,-1393.35,0.0005589,120]
[342782573,1732140719097,-500.0,0.0005589,120]
[342782574,1732140719199,-500.0,0.0005589,120]
[342782575,1732140719210,-500.0,0.0005589,120]
[342782576,1732140719219,-500.0,0.0005589,120]
[342782577,1732140719228,-500.0,0.0005589,120]
[342782578,1732140719237,-2642.2,0.0005589,120]
[342782579,1732140719246,-500.0,0.0005589,120]
[342782580,1732140719256,-1536.4,0.0005589,120]
[342782581,1732140719265,-3168.55,0.0005589,120]
[342782582,1732140719275,-500.0,0.0005589,120]
[342782583,1732140719285,-500.0,0.0005589,120]
[342782584,1732140719294,-500.0,0.0005589,120]
[342782585,1732140719303,-827.35,0.0005589,120]
[342782586,1732140719313,-500.0,0.0005589,120]
[342782587,1732140719322,-1702.89,0.0005589,120]
[342782588,1732140719331,-500.0,0.0005589,120]
[342782589,1732140719340,-500.0,0.0005589,120]
[342782590,1732140719350,-641.78,0.0005589,120]
[342782591,1732140719359,-178.29754466,0.0005589,120]
[342782592,1732140719368,-1344.44,0.0005589,120]
[342782593,1732140719378,-1090.73,0.0005589,120]
[342782594,1732140719387,-52850.67,0.0005589,120]
[342782595,1732140719396,-500.0,0.0005589,120]
[342782596,1732140719407,-500.0,0.0005589,120]
[342782597,1732140719418,-1753.45,0.0005589,120]
[342782598,1732140719427,-1006.78,0.0005589,120]
[342782599,1732140719436,-500.0,0.0005589,120]
[342782600,1732140719445,-1064.88,0.0005589,120]
[342782601,1732140719454,-500.0,0.0005589,120]
[342782602,1732140719465,-500.0,0.0005589,120]
[342782603,1732140719475,-622.97,0.0005589,120]
[342782604,1732140719484,-500.0,0.0005589,120]
[342782605,1732140719494,-3042.17,0.0005589,120]
[342782606,1732140719503,-500.0,0.0005589,120]
[342782607,1732140719513,-1736.39,0.0005589,120]
[342782608,1732140719522,-2339.16,0.0005589,120]
[342782609,1732140719532,-500.0,0.0005589,120]
[342782610,1732140719543,-700.57,0.0005589,120]
[342782611,1732140719552,-585.35,0.0005589,120]
[342782612,1732140719562,-523.5,0.0005589,120]
[342782613,1732140719572,-500.0,0.0005589,120]
[342782614,1732140719582,-1522.74,0.0005589,120]
[342782615,1732140719591,-2627.11,0.0005589,120]
[342782616,1732140719601,-1766.0,0.0005589,120]
[342782617,1732140719610,-693.99,0.0005589,120]
[342782618,1732140719619,-5335.95,0.0005589,120]
[342782619,1732140719628,-500.0,0.0005589,120]
[342782620,1732140719638,-973.18,0.0005589,120]
[342782621,1732140719647,-500.0,0.0005589,120]
[342782622,1732140719656,-500.0,0.0005589,120]
[342782623,1732140719668,-500.0,0.0005589,120]
[342782624,1732140719681,-778.26,0.0005589,120]
[342782625,1732140719690,-500.0,0.0005589,120]
[342782626,1732140719699,-500.0,0.0005589,120]
[342782627,1732140719708,-500.0,0.0005589,120]
[342782628,1732140719718,-500.0,0.0005589,120]
[342782629,1732140719727,-561.95,0.0005589,120]
[342782630,1732140719736,-868.31,0.0005589,120]
[342782631,1732140719745,-1384.57,0.0005589,120]
[342782632,1732140719754,-1122.37,0.0005589,120]
[342782633,1732140719764,-400.36,0.0005589,7]
[342782634,1732140719772,-620.69,0.0005589,120]
[342782635,1732140719782,-1223.49,0.0005589,120]
[342782636,1732140719791,-500.0,0.0005589,120]
[342782637,1732140719801,-1516.54,0.0005589,120]
[342782638,1732140719811,-4704.32,0.0005589,120]
[342782639,1732140719820,-1041.7,0.0005589,120]
[342782640,1732140719830,-500.0,0.0005589,120]
[342782641,1732140719839,-1309.89,0.0005589,120]
[342782642,1732140719848,-525.76,0.0005589,120]
[342782643,1732140719859,-500.0,0.0005589,120]
[342782644,1732140719868,-500.0,0.0005589,120]
[342782645,1732140719878,-500.0,0.0005589,120]
[342782646,1732140719887,-2257.06,0.0005589,120]
[342782647,1732140719896,-2012.7,0.0005589,120]
[342782648,1732140719906,-500.0,0.0005589,120]
[342782649,1732140719921,-500.0,0.0005589,120]
[342782650,1732140719934,-656.82,0.0005589,120]
[342782651,1732140719944,-1047.88,0.0005589,120]
[342782652,1732140719953,-500.0,0.0005589,120]
[342782653,1732140719962,-500.0,0.0005589,120]
[342782654,1732140719971,-1177.9,0.0005589,120]
[342782655,1732140719981,-1603.42,0.0005589,120]
[342782656,1732140719990,-500.0,0.0005589,120]
[342782657,1732140719999,-1567.54,0.0005589,120]
[342782658,1732140720008,-500.0,0.0005589,120]
[342782659,1732140720018,-500.0,0.0005589,120]
[342782660,1732140720027,-834.44,0.0005589,120]
[342782661,1732140720037,-500.0,0.0005589,120]
[342782662,1732140720046,-500.0,0.0005589,120]
[342782663,1732140720055,-2004.44,0.0005589,120]
[342782664,1732140720067,-500.0,0.0005589,120]
[342782665,1732140720077,-1050.71,0.0005589,120]
[342782666,1732140720087,-500.0,0.0005589,120]
[342782667,1732140720097,-1803.54,0.0005589,120]
[342782668,1732140720106,-650.66,0.0005589,120]
[342782669,1732140720117,-516.91,0.0005589,120]
[342782670,1732140720127,-500.0,0.0005589,120]
[342782671,1732140720139,-500.0,0.0005589,120]
[342782672,1732140720149,-500.0,0.0005589,120]
[342782673,1732140720159,-500.0,0.0005589,120]
[342782674,1732140720171,-950.3,0.0005589,120]
[342782675,1732140720183,-4162.19,0.0005589,120]
[342782676,1732140720192,-500.0,0.0005589,120]
[342782677,1732140720202,-729.88,0.0005589,120]
[342782678,1732140720212,-1325.24,0.0005589,120]
[342782679,1732140720221,-1437.64,0.0005589,120]
[342782680,1732140720231,-951.19,0.0005589,120]
[342782681,1732140720241,-500.0,0.0005589,120]
[342782682,1732140720250,-739.2,0.0005589,120]
[342782683,1732140720259,-617.21688741,0.0005589,120]
[342782684,1732140720267,-711.16,0.0005589,120]
[342782685,1732140720276,-35063.23,0.0005589,120]
[342782686,1732140720285,-500.0,0.0005589,120]
[342782687,1732140720294,-758.38,0.0005589,120]
[342782688,1732140720303,-500.0,0.0005589,120]
[342782689,1732140720312,-500.0,0.0005589,120]
[342782690,1732140720321,-500.0,0.0005589,120]
[342782691,1732140720330,-1066.88,0.0005589,120]
[342782692,1732140720339,-501.27787004,0.0005589,120]
[342782693,1732140720348,-500.0,0.0005589,120]
[342782694,1732140720357,-604.09,0.0005589,120]
[342782695,1732140720366,-516.9,0.0005589,120]
[342782696,1732140720376,-1309.97,0.0005589,120]
[342782697,1732140720385,-1271.19,0.0005589,120]
[342782698,1732140720395,-1776.53,0.0005589,120]
[342782699,1732140720404,-1055.78,0.0005589,120]
[342782700,1732140720414,-2027.31,0.0005589,120]
[342782701,1732140720425,-2957.46,0.0005589,120]
[342782702,1732140720434,-565.96,0.0005589,120]
[342782703,1732140720443,-3450.26,0.0005589,120]
[342782704,1732140720452,-1015.77,0.0005589,120]
[342782705,1732140720462,-500.0,0.0005589,120]
[342782706,1732140720471,-5653.29,0.0005589,120]
[342782707,1732140720481,-2531.55,0.0005589,120]
[342782708,1732140720491,-1396.17,0.0005589,120]
[342782709,1732140720500,-699.76,0.0005589,120]
[342782710,1732140720510,-578.1,0.0005589,120]
[342782711,1732140720519,-1833.67,0.0005589,120]
[342782712,1732140720529,-1045.04,0.0005589,120]
[342782713,1732140720539,-500.0,0.0005589,120]
[342782714,1732140720548,-500.0,0.0005589,120]
[342782715,1732140720558,-671.36,0.0005589,120]
[342782716,1732140720568,-500.0,0.0005589,120]
[342782717,1732140720577,-500.0,0.0005589,120]
[342782718,1732140720587,-1250.43,0.0005589,120]
[342782719,1732140720597,-618.56,0.0005589,120]
[342782720,1732140720608,-1529.97,0.0005589,120]
[342782721,1732140720619,-7124.81,0.0005589,120]
[342782722,1732140720629,-916.63,0.0005589,120]
[342782723,1732140720638,-1979.2,0.0005589,120]
[342782724,1732140720648,-1449.91,0.0005589,120]
[342782725,1732140720658,-1114.64,0.0005589,120]
[342782726,1732140720668,-500.0,0.0005589,120]
[342782727,1732140720678,-1049.5,0.0005589,120]
[342782728,1732140720687,-500.0,0.0005589,120]
[342782729,1732140720697,-500.0,0.0005589,120]
[342782730,1732140720706,-500.0,0.0005589,120]
[342782731,1732140720716,-500.0,0.0005589,120]
[342782732,1732140720725,-2536.25,0.0005589,120]
[342782733,1732140720735,-3951.61,0.0005589,120]
[342782734,1732140720745,-2472.73,0.0005589,120]
[342782735,1732140720755,-500.0,0.0005589,120]
[342782736,1732140720764,-500.0,0.0005589,120]
[342782737,1732140720773,-500.0,0.0005589,120]
[342782738,1732140720782,-500.0,0.0005589,120]
[342782739,1732140720792,-786.55,0.0005589,120]
[342782740,1732140720801,-500.0,0.0005589,120]
[342782741,1732140720810,-4870.15,0.0005589,120]
[342782742,1732140720819,-883.86,0.0005589,120]
[342782743,1732140720828,-2000.0,0.0005589,30]
[342782744,1732140720837,-500.0,0.0005589,120]
[342782745,1732140720847,-4533.42,0.0005589,120]
[342782746,1732140720856,-502.04084288,0.0005589,120]
[342782747,1732140720865,-500.0,0.0005589,120]
[342782748,1732140720874,-636.47,0.0005589,120]
[342782749,1732140720883,-851.5,0.0005589,120]
[342782750,1732140720892,-1816.21,0.0005589,120]
[342782751,1732140720902,-500.0,0.0005589,120]
[342782752,1732140720911,-616.92,0.0005589,120]
[342782753,1732140720923,-1014.23,0.0005589,120]
[342782754,1732140720932,-6811.17,0.0005589,120]
[342782755,1732140720941,-500.0,0.0005589,120]
[342782756,1732140720950,-500.0,0.0005589,120]
[342782757,1732140720960,-500.0,0.0005589,120]
[342782758,1732140720970,-500.0,0.0005589,120]
[342782759,1732140720979,-1332.89,0.0005589,120]
[342782760,1732140720988,-753.95,0.0005589,120]
[342782761,1732140720997,-10722.81,0.0005589,120]
[342782762,1732140721007,-500.0,0.0005589,120]
[342782763,1732140721016,-500.0,0.0005589,120]
[342782764,1732140721026,-1359.85,0.0005589,120]
[342782765,1732140721036,-2324.44,0.0005589,120]
[342782766,1732140721046,-500.0,0.0005589,120]
[342782767,1732140721056,-535.04,0.0005589,120]
[342782768,1732140721066,-4406.16,0.0005589,120]
[342782769,1732140721076,-500.0,0.0005589,120]
[342782770,1732140721086,-1128.91,0.0005589,120]
[342782771,1732140721096,-500.0,0.0005589,120]
[342782772,1732140721106,-665.96,0.0005589,120]
[342782773,1732140721116,-980.99,0.0005589,120]
[342782774,1732140721126,-580.64,0.0005589,120]
[342782775,1732140721138,-500.0,0.0005589,120]
[342782776,1732140721148,-892.8,0.0005589,120]
[342782777,1732140721159,-1436.75,0.0005589,120]
[342782778,1732140721172,-558.99,0.0005589,120]
[342782779,1732140721182,-778.22,0.0005589,120]
[342782780,1732140721192,-1153.44,0.0005589,7]
[342782781,1732140721201,-500.0,0.0005589,120]
[342782782,1732140721212,-2548.81,0.0005589,120]
[342782783,1732140721222,-3675.23,0.0005589,120]
[342782784,1732140721232,-500.0,0.0005589,120]
[342782785,1732140721242,-500.0,0.0005589,120]
[342782786,1732140721252,-500.0,0.0005589,120]
[342782787,1732140721262,-578.20638777,0.0005589,120]
[342782788,1732140721271,-500.0,0.0005589,120]
[342782789,1732140721281,-3167.44,0.0005589,120]
[342782790,1732140721290,-2249.83,0.0005589,120]
[342782791,1732140721300,-340.3392057,0.0005589,120]
[342782792,1732140721311,-500.0,0.0005589,120]
[342782793,1732140721321,-500.0,0.0005589,120]
[342782794,1732140721331,-11179.92,0.0005589,21]
[342782795,1732140721341,-500.0,0.0005589,120]
[342782796,1732140721351,-500.0,0.0005589,120]
[342782797,1732140721361,-859.5,0.0005589,120]
[342782798,1732140721371,-500.0,0.0005589,120]
[342782799,1732140721381,-3662.75,0.0005589,120]
[342782800,1732140721392,-922.45,0.0005589,120]
[342782801,1732140721402,-500.0,0.0005589,120]
[342782802,1732140721412,-500.0,0.0005589,120]
[342782803,1732140721424,-500.0,0.0005589,120]
[342782804,1732140721434,-1994.35,0.0005589,120]
[342782805,1732140721444,-500.0,0.0005589,120]
[342782806,1732140721454,-500.0,0.0005589,120]
[342782807,1732140721464,-1363.9,0.0005589,120]
[342782808,1732140721474,-1162.72,0.0005589,120]
[342782809,1732140721484,-66449.02,0.0005589,5]
[342782810,1732140721494,-1815.23,0.0005589,120]
[342782811,1732140721504,-1114.06,0.0005589,120]
[342782812,1732140721514,-500.0,0.0005589,120]
[342782813,1732140721524,-1159.58,0.0005589,120]
[342782814,1732140721533,-500.0,0.0005589,120]
[342782815,1732140721543,-500.0,0.0005589,120]
[342782816,1732140721552,-500.0,0.0005589,120]
[342782817,1732140721562,-2826.01,0.0005589,120]
[342782818,1732140721572,-6111.41,0.0005589,120]
[342782819,1732140721582,-500.0,0.0005589,120]
[342782820,1732140721592,-500.0,0.0005589,120]
[342782821,1732140721602,-502.12069106,0.0005589,120]
[342782822,1732140721612,-500.0,0.0005589,120]
[342782823,1732140721621,-1031.65,0.0005589,120]
[342782824,1732140721632,-532.59,0.0005589,120]
[342782825,1732140721642,-754.16,0.0005589,120]
[342782826,1732140721652,-553.58,0.0005589,120]
[342782827,1732140721663,-500.0,0.0005589,120]
[342782828,1732140721681,-500.0,0.0005589,120]
[342782829,1732140721691,-500.0,0.0005589,120]
[342782830,1732140721702,-3918.3,0.0005589,120]
[342782831,1732140721712,-500.0,0.0005589,120]
[342782832,1732140721721,-687.41,0.0005589,120]
[342782833,1732140721731,-2233.29,0.0005589,120]
[342782834,1732140721741,-2901.67,0.0005589,120]
[342782835,1732140721751,-500.0,0.0005589,120]
[342782836,1732140721761,-1693.94,0.0005589,120]
[342782837,1732140721771,-1140.89,0.0005589,120]
[342782838,1732140721780,-743.27,0.0005589,120]
[342782839,1732140721790,-4798.42,0.0005589,120]
[342782840,1732140721800,-884.65,0.0005589,120]
[342782841,1732140721809,-500.0,0.0005589,120]
[342782842,1732140721819,-589.18,0.0005589,120]
[342782843,1732140721831,-1609.97,0.0005589,120]
[342782844,1732140721841,-500.0,0.0005589,120]
[342782845,1732140721851,-842.19,0.0005589,120]
[342782846,1732140721861,-500.0,0.0005589,120]
[342782847,1732140721872,-500.0,0.0005589,120]
[342782848,1732140721883,-548.16,0.0005589,120]
[342782849,1732140721893,-4873.91,0.0005589,120]
[342782850,1732140721903,-1086.88,0.0005589,120]
[342782851,1732140721915,-500.0,0.0005589,120]
[342782852,1732140721927,-1158.88,0.0005589,120]
[342782853,1732140721937,-7009.95,0.0005589,120]
[342782854,1732140721947,-725.57,0.0005589,120]
[342782855,1732140721957,-500.0,0.0005589,120]
[342782856,1732140721968,-500.0,0.0005589,120]
[342782857,1732140721978,-622.30334733,0.0005589,120]
[342782858,1732140721988,-2713.37,0.0005589,120]
[342782859,1732140721998,-500.0,0.0005589,120]
[342782860,1732140722008,-2674.97,0.0005589,120]
[342782861,1732140722018,-1095.19,0.0005589,120]
[342782862,1732140722029,-500.0,0.0005589,120]
[342782863,1732140722040,-3162.29,0.0005589,120]
[342782864,1732140722050,-500.0,0.0005589,120]
[342782865,1732140722062,-500.0,0.0005589,120]
[342782866,1732140722072,-232.74829642,0.0005589,120]
[342782867,1732140722083,-500.0,0.0005589,120]
[342782868,1732140722094,-5192.12,0.0005589,120]
[342782869,1732140722104,-6968.45,0.0005589,60]
[342782870,1732140722114,-500.0,0.0005589,120]
[342782871,1732140722124,-389.32825988,0.0005589,120]
[342782872,1732140722136,-500.0,0.0005589,120]
[342782873,1732140722151,-500.0,0.0005589,120]
[342782874,1732140722161,-500.0,0.0005589,120]
[342782875,1732140722173,-788.84,0.0005589,120]
[342782876,1732140722184,-801.02,0.0005589,120]
[342782877,1732140722195,-1135.51,0.0005589,120]
[342782878,1732140722204,-517.77658954,0.0005589,120]
[342782879,1732140722216,-565.84,0.0005589,120]
[342782880,1732140722226,-500.0,0.0005589,120]
[342782881,1732140722235,-736.59,0.0005589,120]
[342782882,1732140722245,-778.41,0.0005589,120]
[342782883,1732140722255,-2123.81,0.0005589,120]
[342782884,1732140722265,-1368.4,0.0005589,120]
[342782885,1732140722275,-1176.11,0.0005589,120]
[342782886,1732140722286,-500.0,0.0005589,120]
[342782887,1732140722296,-500.0,0.0005589,120]
[342782888,1732140722306,-6444.84,0.0005589,120]
[342782889,1732140722316,-840.5,0.0005589,120]
[342782890,1732140722326,-1149.75,0.0005589,120]
[342782891,1732140722336,-538.19,0.0005589,120]
[342782892,1732140722346,-1918.75,0.0005589,120]
[342782893,1732140722357,-527.39,0.0005589,120]
[342782894,1732140722366,-500.0,0.0005589,120]
[342782895,1732140722376,-846.33,0.0005589,120]
[342782896,1732140722386,-924.66,0.0005589,120]
[342782897,1732140722396,-1437.44,0.0005589,120]
[342782898,1732140722406,-655.97,0.0005589,120]
[342782899,1732140722417,-613.35,0.0005589,120]
[342782900,1732140722428,-1217.61,0.0005589,120]
[342782901,1732140722438,-7358.45,0.0005589,120]
[342782902,1732140722448,-1149.18,0.0005589,120]
[342782903,1732140722459,-500.0,0.0005589,120]
[342782904,1732140722468,-1147.11,0.0005589,120]
[342782905,1732140722480,-500.0,0.0005589,120]
[342782906,1732140722489,-1974.94,0.0005589,120]
[342782907,1732140722500,-17457.35,0.0005589,120]
[342782908,1732140722511,-13034.59,0.0005589,120]
[342782909,1732140722520,-2237.64,0.0005589,120]
[342782910,1732140722530,-500.0,0.0005589,120]
[342782911,1732140722541,-2737.65,0.0005589,120]
[342782912,1732140722551,-500.0,0.0005589,120]
[342782913,1732140722561,-551.05,0.0005589,120]
[342782914,1732140722572,-2479.1,0.0005589,120]
[342782915,1732140722582,-500.0,0.0005589,120]